{"text_format":"3","workbook":"xlsx","n_sheets":5,"sheets":["Produkto pardavimo ataskaita ","Istoriniai duomenys","Kainoraštis","Kainos taško „Pivot“","Pardavimo tendencijų „Pivot“"],"not_rendered":{"charts":2,"defined_names":6,"pivot_tables":2},"read":"whole","date_system":"1900"}

{"sheet":"Produkto pardavimo ataskaita ","index":0,"n_rows":20,"n_cols":2,"rows_kept":20}
[null,"Produktų pardavimo ataskaita"]
{"$rows_empty":18}
[null," Produktai"]

{"sheet":"Istoriniai duomenys","index":1,"n_rows":33,"n_cols":10,"rows_kept":33}
[null,"Retrospektyvinis produktų kainoraštis ir pardavimas"]
[]
[null,"Produkto ID","Produkto pavadinimas","Kainos data","Mažmeninė vieneto kaina","Didmeninė vieneto kaina*","Parduota vienetų (mažmenine kaina)","Parduota vienetų (didmenine kaina)","Iš viso parduota (#)","Bendra pardavimo suma (Lt)"]
[null,5,{"$f":"IFERROR(IF(lntPard[[#This Row],[Produkto ID]]<>\"\",VLOOKUP(lntPard[Produkto ID],lntProdukt[[Produkto ID]:[Pavadinimas]],2,FALSE),\"\"),\"Unknown Product ID\")","v":"Šortai"},"2012-01-01",20,{"v":20,"d":"20.00 Lt"},629,{"v":1254,"d":"1,254"},{"$f":"lntPard[[#This Row],[Parduota vienetų (mažmenine kaina)]]+lntPard[[#This Row],[Parduota vienetų (didmenine kaina)]]","v":{"v":1883,"d":"1,883"}},{"$f":"lntPard[[#This Row],[Parduota vienetų (mažmenine kaina)]]*lntPard[[#This Row],[Mažmeninė vieneto kaina]]+lntPard[[#This Row],[Parduota vienetų (didmenine kaina)]]*lntPard[[#This Row],[Didmeninė vieneto kaina*]]","v":{"v":37660,"d":"37,660.00 Lt"}}]
[null,1,{"$f":"IFERROR(IF(lntPard[[#This Row],[Produkto ID]]<>\"\",VLOOKUP(lntPard[Produkto ID],lntProdukt[[Produkto ID]:[Pavadinimas]],2,FALSE),\"\"),\"Unknown Product ID\")","v":"Marškiniai"},"2012-01-01",88,{"v":54,"d":"54.00 Lt"},734,{"v":1427,"d":"1,427"},{"$f":"lntPard[[#This Row],[Parduota vienetų (mažmenine kaina)]]+lntPard[[#This Row],[Parduota vienetų (didmenine kaina)]]","v":{"v":2161,"d":"2,161"}},{"$f":"lntPard[[#This Row],[Parduota vienetų (mažmenine kaina)]]*lntPard[[#This Row],[Mažmeninė vieneto kaina]]+lntPard[[#This Row],[Parduota vienetų (didmenine kaina)]]*lntPard[[#This Row],[Didmeninė vieneto kaina*]]","v":{"v":141650,"d":"141,650.00 Lt"}}]
[null,2,{"$f":"IFERROR(IF(lntPard[[#This Row],[Produkto ID]]<>\"\",VLOOKUP(lntPard[Produkto ID],lntProdukt[[Produkto ID]:[Pavadinimas]],2,FALSE),\"\"),\"Unknown Product ID\")","v":"Sandalai"},"2012-01-01",70,{"v":44,"d":"44.00 Lt"},744,{"v":1043,"d":"1,043"},{"$f":"lntPard[[#This Row],[Parduota vienetų (mažmenine kaina)]]+lntPard[[#This Row],[Parduota vienetų (didmenine kaina)]]","v":{"v":1787,"d":"1,787"}},{"$f":"lntPard[[#This Row],[Parduota vienetų (mažmenine kaina)]]*lntPard[[#This Row],[Mažmeninė vieneto kaina]]+lntPard[[#This Row],[Parduota vienetų (didmenine kaina)]]*lntPard[[#This Row],[Didmeninė vieneto kaina*]]","v":{"v":97972,"d":"97,972.00 Lt"}}]
[null,3,{"$f":"IFERROR(IF(lntPard[[#This Row],[Produkto ID]]<>\"\",VLOOKUP(lntPard[Produkto ID],lntProdukt[[Produkto ID]:[Pavadinimas]],2,FALSE),\"\"),\"Unknown Product ID\")","v":"Skėčiai"},"2012-01-01",63,{"v":44,"d":"44.00 Lt"},681,{"v":1523,"d":"1,523"},{"$f":"lntPard[[#This Row],[Parduota vienetų (mažmenine kaina)]]+lntPard[[#This Row],[Parduota vienetų (didmenine kaina)]]","v":{"v":2204,"d":"2,204"}},{"$f":"lntPard[[#This Row],[Parduota vienetų (mažmenine kaina)]]*lntPard[[#This Row],[Mažmeninė vieneto kaina]]+lntPard[[#This Row],[Parduota vienetų (didmenine kaina)]]*lntPard[[#This Row],[Didmeninė vieneto kaina*]]","v":{"v":109915,"d":"109,915.00 Lt"}}]
[null,4,{"$f":"IFERROR(IF(lntPard[[#This Row],[Produkto ID]]<>\"\",VLOOKUP(lntPard[Produkto ID],lntProdukt[[Produkto ID]:[Pavadinimas]],2,FALSE),\"\"),\"Unknown Product ID\")","v":"Vandens buteliai"},"2012-01-01",35,{"v":27,"d":"27.00 Lt"},602,{"v":1822,"d":"1,822"},{"$f":"lntPard[[#This Row],[Parduota vienetų (mažmenine kaina)]]+lntPard[[#This Row],[Parduota vienetų (didmenine kaina)]]","v":{"v":2424,"d":"2,424"}},{"$f":"lntPard[[#This Row],[Parduota vienetų (mažmenine kaina)]]*lntPard[[#This Row],[Mažmeninė vieneto kaina]]+lntPard[[#This Row],[Parduota vienetų (didmenine kaina)]]*lntPard[[#This Row],[Didmeninė vieneto kaina*]]","v":{"v":70264,"d":"70,264.00 Lt"}}]
[null,1,{"$f":"IFERROR(IF(lntPard[[#This Row],[Produkto ID]]<>\"\",VLOOKUP(lntPard[Produkto ID],lntProdukt[[Produkto ID]:[Pavadinimas]],2,FALSE),\"\"),\"Unknown Product ID\")","v":"Marškiniai"},"2012-02-01",55,{"v":44,"d":"44.00 Lt"},678,{"v":1515,"d":"1,515"},{"$f":"lntPard[[#This Row],[Parduota vienetų (mažmenine kaina)]]+lntPard[[#This Row],[Parduota vienetų (didmenine kaina)]]","v":{"v":2193,"d":"2,193"}},{"$f":"lntPard[[#This Row],[Parduota vienetų (mažmenine kaina)]]*lntPard[[#This Row],[Mažmeninė vieneto kaina]]+lntPard[[#This Row],[Parduota vienetų (didmenine kaina)]]*lntPard[[#This Row],[Didmeninė vieneto kaina*]]","v":{"v":103950,"d":"103,950.00 Lt"}}]
[null,2,{"$f":"IFERROR(IF(lntPard[[#This Row],[Produkto ID]]<>\"\",VLOOKUP(lntPard[Produkto ID],lntProdukt[[Produkto ID]:[Pavadinimas]],2,FALSE),\"\"),\"Unknown Product ID\")","v":"Sandalai"},"2012-02-01",83,{"v":54,"d":"54.00 Lt"},753,{"v":1005,"d":"1,005"},{"$f":"lntPard[[#This Row],[Parduota vienetų (mažmenine kaina)]]+lntPard[[#This Row],[Parduota vienetų (didmenine kaina)]]","v":{"v":1758,"d":"1,758"}},{"$f":"lntPard[[#This Row],[Parduota vienetų (mažmenine kaina)]]*lntPard[[#This Row],[Mažmeninė vieneto kaina]]+lntPard[[#This Row],[Parduota vienetų (didmenine kaina)]]*lntPard[[#This Row],[Didmeninė vieneto kaina*]]","v":{"v":116769,"d":"116,769.00 Lt"}}]
[null,3,{"$f":"IFERROR(IF(lntPard[[#This Row],[Produkto ID]]<>\"\",VLOOKUP(lntPard[Produkto ID],lntProdukt[[Produkto ID]:[Pavadinimas]],2,FALSE),\"\"),\"Unknown Product ID\")","v":"Skėčiai"},"2012-02-01",34,{"v":34,"d":"34.00 Lt"},986,{"v":1069,"d":"1,069"},{"$f":"lntPard[[#This Row],[Parduota vienetų (mažmenine kaina)]]+lntPard[[#This Row],[Parduota vienetų (didmenine kaina)]]","v":{"v":2055,"d":"2,055"}},{"$f":"lntPard[[#This Row],[Parduota vienetų (mažmenine kaina)]]*lntPard[[#This Row],[Mažmeninė vieneto kaina]]+lntPard[[#This Row],[Parduota vienetų (didmenine kaina)]]*lntPard[[#This Row],[Didmeninė vieneto kaina*]]","v":{"v":69870,"d":"69,870.00 Lt"}}]
[null,4,{"$f":"IFERROR(IF(lntPard[[#This Row],[Produkto ID]]<>\"\",VLOOKUP(lntPard[Produkto ID],lntProdukt[[Produkto ID]:[Pavadinimas]],2,FALSE),\"\"),\"Unknown Product ID\")","v":"Vandens buteliai"},"2012-02-01",35,{"v":25,"d":"25.00 Lt"},848,{"v":1211,"d":"1,211"},{"$f":"lntPard[[#This Row],[Parduota vienetų (mažmenine kaina)]]+lntPard[[#This Row],[Parduota vienetų (didmenine kaina)]]","v":{"v":2059,"d":"2,059"}},{"$f":"lntPard[[#This Row],[Parduota vienetų (mažmenine kaina)]]*lntPard[[#This Row],[Mažmeninė vieneto kaina]]+lntPard[[#This Row],[Parduota vienetų (didmenine kaina)]]*lntPard[[#This Row],[Didmeninė vieneto kaina*]]","v":{"v":59955,"d":"59,955.00 Lt"}}]
[null,5,{"$f":"IFERROR(IF(lntPard[[#This Row],[Produkto ID]]<>\"\",VLOOKUP(lntPard[Produkto ID],lntProdukt[[Produkto ID]:[Pavadinimas]],2,FALSE),\"\"),\"Unknown Product ID\")","v":"Šortai"},"2012-02-01",41,{"v":38,"d":"38.00 Lt"},980,{"v":1330,"d":"1,330"},{"$f":"lntPard[[#This Row],[Parduota vienetų (mažmenine kaina)]]+lntPard[[#This Row],[Parduota vienetų (didmenine kaina)]]","v":{"v":2310,"d":"2,310"}},{"$f":"lntPard[[#This Row],[Parduota vienetų (mažmenine kaina)]]*lntPard[[#This Row],[Mažmeninė vieneto kaina]]+lntPard[[#This Row],[Parduota vienetų (didmenine kaina)]]*lntPard[[#This Row],[Didmeninė vieneto kaina*]]","v":{"v":90720,"d":"90,720.00 Lt"}}]
[null,1,{"$f":"IFERROR(IF(lntPard[[#This Row],[Produkto ID]]<>\"\",VLOOKUP(lntPard[Produkto ID],lntProdukt[[Produkto ID]:[Pavadinimas]],2,FALSE),\"\"),\"Unknown Product ID\")","v":"Marškiniai"},"2012-02-29",27,{"v":18,"d":"18.00 Lt"},533,{"v":1936,"d":"1,936"},{"$f":"lntPard[[#This Row],[Parduota vienetų (mažmenine kaina)]]+lntPard[[#This Row],[Parduota vienetų (didmenine kaina)]]","v":{"v":2469,"d":"2,469"}},{"$f":"lntPard[[#This Row],[Parduota vienetų (mažmenine kaina)]]*lntPard[[#This Row],[Mažmeninė vieneto kaina]]+lntPard[[#This Row],[Parduota vienetų (didmenine kaina)]]*lntPard[[#This Row],[Didmeninė vieneto kaina*]]","v":{"v":49239,"d":"49,239.00 Lt"}}]
[null,2,{"$f":"IFERROR(IF(lntPard[[#This Row],[Produkto ID]]<>\"\",VLOOKUP(lntPard[Produkto ID],lntProdukt[[Produkto ID]:[Pavadinimas]],2,FALSE),\"\"),\"Unknown Product ID\")","v":"Sandalai"},"2012-02-29",38,{"v":28,"d":"28.00 Lt"},952,{"v":1512,"d":"1,512"},{"$f":"lntPard[[#This Row],[Parduota vienetų (mažmenine kaina)]]+lntPard[[#This Row],[Parduota vienetų (didmenine kaina)]]","v":{"v":2464,"d":"2,464"}},{"$f":"lntPard[[#This Row],[Parduota vienetų (mažmenine kaina)]]*lntPard[[#This Row],[Mažmeninė vieneto kaina]]+lntPard[[#This Row],[Parduota vienetų (didmenine kaina)]]*lntPard[[#This Row],[Didmeninė vieneto kaina*]]","v":{"v":78512,"d":"78,512.00 Lt"}}]
[null,3,{"$f":"IFERROR(IF(lntPard[[#This Row],[Produkto ID]]<>\"\",VLOOKUP(lntPard[Produkto ID],lntProdukt[[Produkto ID]:[Pavadinimas]],2,FALSE),\"\"),\"Unknown Product ID\")","v":"Skėčiai"},"2012-02-29",92,{"v":92,"d":"92.00 Lt"},956,{"v":1266,"d":"1,266"},{"$f":"lntPard[[#This Row],[Parduota vienetų (mažmenine kaina)]]+lntPard[[#This Row],[Parduota vienetų (didmenine kaina)]]","v":{"v":2222,"d":"2,222"}},{"$f":"lntPard[[#This Row],[Parduota vienetų (mažmenine kaina)]]*lntPard[[#This Row],[Mažmeninė vieneto kaina]]+lntPard[[#This Row],[Parduota vienetų (didmenine kaina)]]*lntPard[[#This Row],[Didmeninė vieneto kaina*]]","v":{"v":204424,"d":"204,424.00 Lt"}}]
[null,4,{"$f":"IFERROR(IF(lntPard[[#This Row],[Produkto ID]]<>\"\",VLOOKUP(lntPard[Produkto ID],lntProdukt[[Produkto ID]:[Pavadinimas]],2,FALSE),\"\"),\"Unknown Product ID\")","v":"Vandens buteliai"},"2012-02-29",43,{"v":36,"d":"36.00 Lt"},952,{"v":1390,"d":"1,390"},{"$f":"lntPard[[#This Row],[Parduota vienetų (mažmenine kaina)]]+lntPard[[#This Row],[Parduota vienetų (didmenine kaina)]]","v":{"v":2342,"d":"2,342"}},{"$f":"lntPard[[#This Row],[Parduota vienetų (mažmenine kaina)]]*lntPard[[#This Row],[Mažmeninė vieneto kaina]]+lntPard[[#This Row],[Parduota vienetų (didmenine kaina)]]*lntPard[[#This Row],[Didmeninė vieneto kaina*]]","v":{"v":90976,"d":"90,976.00 Lt"}}]
[null,5,{"$f":"IFERROR(IF(lntPard[[#This Row],[Produkto ID]]<>\"\",VLOOKUP(lntPard[Produkto ID],lntProdukt[[Produkto ID]:[Pavadinimas]],2,FALSE),\"\"),\"Unknown Product ID\")","v":"Šortai"},"2012-02-29",98,{"v":73,"d":"73.00 Lt"},530,{"v":1452,"d":"1,452"},{"$f":"lntPard[[#This Row],[Parduota vienetų (mažmenine kaina)]]+lntPard[[#This Row],[Parduota vienetų (didmenine kaina)]]","v":{"v":1982,"d":"1,982"}},{"$f":"lntPard[[#This Row],[Parduota vienetų (mažmenine kaina)]]*lntPard[[#This Row],[Mažmeninė vieneto kaina]]+lntPard[[#This Row],[Parduota vienetų (didmenine kaina)]]*lntPard[[#This Row],[Didmeninė vieneto kaina*]]","v":{"v":157936,"d":"157,936.00 Lt"}}]
[null,1,{"$f":"IFERROR(IF(lntPard[[#This Row],[Produkto ID]]<>\"\",VLOOKUP(lntPard[Produkto ID],lntProdukt[[Produkto ID]:[Pavadinimas]],2,FALSE),\"\"),\"Unknown Product ID\")","v":"Marškiniai"},"2012-03-31",38,{"v":28,"d":"28.00 Lt"},973,{"v":1415,"d":"1,415"},{"$f":"lntPard[[#This Row],[Parduota vienetų (mažmenine kaina)]]+lntPard[[#This Row],[Parduota vienetų (didmenine kaina)]]","v":{"v":2388,"d":"2,388"}},{"$f":"lntPard[[#This Row],[Parduota vienetų (mažmenine kaina)]]*lntPard[[#This Row],[Mažmeninė vieneto kaina]]+lntPard[[#This Row],[Parduota vienetų (didmenine kaina)]]*lntPard[[#This Row],[Didmeninė vieneto kaina*]]","v":{"v":76594,"d":"76,594.00 Lt"}}]
[null,2,{"$f":"IFERROR(IF(lntPard[[#This Row],[Produkto ID]]<>\"\",VLOOKUP(lntPard[Produkto ID],lntProdukt[[Produkto ID]:[Pavadinimas]],2,FALSE),\"\"),\"Unknown Product ID\")","v":"Sandalai"},"2012-03-31",50,{"v":36,"d":"36.00 Lt"},672,{"v":1105,"d":"1,105"},{"$f":"lntPard[[#This Row],[Parduota vienetų (mažmenine kaina)]]+lntPard[[#This Row],[Parduota vienetų (didmenine kaina)]]","v":{"v":1777,"d":"1,777"}},{"$f":"lntPard[[#This Row],[Parduota vienetų (mažmenine kaina)]]*lntPard[[#This Row],[Mažmeninė vieneto kaina]]+lntPard[[#This Row],[Parduota vienetų (didmenine kaina)]]*lntPard[[#This Row],[Didmeninė vieneto kaina*]]","v":{"v":73380,"d":"73,380.00 Lt"}}]
[null,3,{"$f":"IFERROR(IF(lntPard[[#This Row],[Produkto ID]]<>\"\",VLOOKUP(lntPard[Produkto ID],lntProdukt[[Produkto ID]:[Pavadinimas]],2,FALSE),\"\"),\"Unknown Product ID\")","v":"Skėčiai"},"2012-03-31",24,{"v":23,"d":"23.00 Lt"},769,{"v":1629,"d":"1,629"},{"$f":"lntPard[[#This Row],[Parduota vienetų (mažmenine kaina)]]+lntPard[[#This Row],[Parduota vienetų (didmenine kaina)]]","v":{"v":2398,"d":"2,398"}},{"$f":"lntPard[[#This Row],[Parduota vienetų (mažmenine kaina)]]*lntPard[[#This Row],[Mažmeninė vieneto kaina]]+lntPard[[#This Row],[Parduota vienetų (didmenine kaina)]]*lntPard[[#This Row],[Didmeninė vieneto kaina*]]","v":{"v":55923,"d":"55,923.00 Lt"}}]
[null,4,{"$f":"IFERROR(IF(lntPard[[#This Row],[Produkto ID]]<>\"\",VLOOKUP(lntPard[Produkto ID],lntProdukt[[Produkto ID]:[Pavadinimas]],2,FALSE),\"\"),\"Unknown Product ID\")","v":"Vandens buteliai"},"2012-03-31",72,{"v":57,"d":"57.00 Lt"},985,{"v":1848,"d":"1,848"},{"$f":"lntPard[[#This Row],[Parduota vienetų (mažmenine kaina)]]+lntPard[[#This Row],[Parduota vienetų (didmenine kaina)]]","v":{"v":2833,"d":"2,833"}},{"$f":"lntPard[[#This Row],[Parduota vienetų (mažmenine kaina)]]*lntPard[[#This Row],[Mažmeninė vieneto kaina]]+lntPard[[#This Row],[Parduota vienetų (didmenine kaina)]]*lntPard[[#This Row],[Didmeninė vieneto kaina*]]","v":{"v":176256,"d":"176,256.00 Lt"}}]
[null,5,{"$f":"IFERROR(IF(lntPard[[#This Row],[Produkto ID]]<>\"\",VLOOKUP(lntPard[Produkto ID],lntProdukt[[Produkto ID]:[Pavadinimas]],2,FALSE),\"\"),\"Unknown Product ID\")","v":"Šortai"},"2012-03-31",85,{"v":43,"d":"43.00 Lt"},721,{"v":1426,"d":"1,426"},{"$f":"lntPard[[#This Row],[Parduota vienetų (mažmenine kaina)]]+lntPard[[#This Row],[Parduota vienetų (didmenine kaina)]]","v":{"v":2147,"d":"2,147"}},{"$f":"lntPard[[#This Row],[Parduota vienetų (mažmenine kaina)]]*lntPard[[#This Row],[Mažmeninė vieneto kaina]]+lntPard[[#This Row],[Parduota vienetų (didmenine kaina)]]*lntPard[[#This Row],[Didmeninė vieneto kaina*]]","v":{"v":122603,"d":"122,603.00 Lt"}}]
[null,1,{"$f":"IFERROR(IF(lntPard[[#This Row],[Produkto ID]]<>\"\",VLOOKUP(lntPard[Produkto ID],lntProdukt[[Produkto ID]:[Pavadinimas]],2,FALSE),\"\"),\"Unknown Product ID\")","v":"Marškiniai"},"2012-04-30",91,{"v":65,"d":"65.00 Lt"},603,{"v":1226,"d":"1,226"},{"$f":"lntPard[[#This Row],[Parduota vienetų (mažmenine kaina)]]+lntPard[[#This Row],[Parduota vienetų (didmenine kaina)]]","v":{"v":1829,"d":"1,829"}},{"$f":"lntPard[[#This Row],[Parduota vienetų (mažmenine kaina)]]*lntPard[[#This Row],[Mažmeninė vieneto kaina]]+lntPard[[#This Row],[Parduota vienetų (didmenine kaina)]]*lntPard[[#This Row],[Didmeninė vieneto kaina*]]","v":{"v":134563,"d":"134,563.00 Lt"}}]
[null,2,{"$f":"IFERROR(IF(lntPard[[#This Row],[Produkto ID]]<>\"\",VLOOKUP(lntPard[Produkto ID],lntProdukt[[Produkto ID]:[Pavadinimas]],2,FALSE),\"\"),\"Unknown Product ID\")","v":"Sandalai"},"2012-04-30",91,{"v":55,"d":"55.00 Lt"},892,{"v":1823,"d":"1,823"},{"$f":"lntPard[[#This Row],[Parduota vienetų (mažmenine kaina)]]+lntPard[[#This Row],[Parduota vienetų (didmenine kaina)]]","v":{"v":2715,"d":"2,715"}},{"$f":"lntPard[[#This Row],[Parduota vienetų (mažmenine kaina)]]*lntPard[[#This Row],[Mažmeninė vieneto kaina]]+lntPard[[#This Row],[Parduota vienetų (didmenine kaina)]]*lntPard[[#This Row],[Didmeninė vieneto kaina*]]","v":{"v":181437,"d":"181,437.00 Lt"}}]
[null,3,{"$f":"IFERROR(IF(lntPard[[#This Row],[Produkto ID]]<>\"\",VLOOKUP(lntPard[Produkto ID],lntProdukt[[Produkto ID]:[Pavadinimas]],2,FALSE),\"\"),\"Unknown Product ID\")","v":"Skėčiai"},"2012-04-30",42,{"v":42,"d":"42.00 Lt"},611,{"v":1181,"d":"1,181"},{"$f":"lntPard[[#This Row],[Parduota vienetų (mažmenine kaina)]]+lntPard[[#This Row],[Parduota vienetų (didmenine kaina)]]","v":{"v":1792,"d":"1,792"}},{"$f":"lntPard[[#This Row],[Parduota vienetų (mažmenine kaina)]]*lntPard[[#This Row],[Mažmeninė vieneto kaina]]+lntPard[[#This Row],[Parduota vienetų (didmenine kaina)]]*lntPard[[#This Row],[Didmeninė vieneto kaina*]]","v":{"v":75264,"d":"75,264.00 Lt"}}]
[null,4,{"$f":"IFERROR(IF(lntPard[[#This Row],[Produkto ID]]<>\"\",VLOOKUP(lntPard[Produkto ID],lntProdukt[[Produkto ID]:[Pavadinimas]],2,FALSE),\"\"),\"Unknown Product ID\")","v":"Vandens buteliai"},"2012-04-30",85,{"v":43,"d":"43.00 Lt"},530,{"v":1039,"d":"1,039"},{"$f":"lntPard[[#This Row],[Parduota vienetų (mažmenine kaina)]]+lntPard[[#This Row],[Parduota vienetų (didmenine kaina)]]","v":{"v":1569,"d":"1,569"}},{"$f":"lntPard[[#This Row],[Parduota vienetų (mažmenine kaina)]]*lntPard[[#This Row],[Mažmeninė vieneto kaina]]+lntPard[[#This Row],[Parduota vienetų (didmenine kaina)]]*lntPard[[#This Row],[Didmeninė vieneto kaina*]]","v":{"v":89727,"d":"89,727.00 Lt"}}]
[null,5,{"$f":"IFERROR(IF(lntPard[[#This Row],[Produkto ID]]<>\"\",VLOOKUP(lntPard[Produkto ID],lntProdukt[[Produkto ID]:[Pavadinimas]],2,FALSE),\"\"),\"Unknown Product ID\")","v":"Šortai"},"2012-04-30",82,{"v":71,"d":"71.00 Lt"},716,{"v":1249,"d":"1,249"},{"$f":"lntPard[[#This Row],[Parduota vienetų (mažmenine kaina)]]+lntPard[[#This Row],[Parduota vienetų (didmenine kaina)]]","v":{"v":1965,"d":"1,965"}},{"$f":"lntPard[[#This Row],[Parduota vienetų (mažmenine kaina)]]*lntPard[[#This Row],[Mažmeninė vieneto kaina]]+lntPard[[#This Row],[Parduota vienetų (didmenine kaina)]]*lntPard[[#This Row],[Didmeninė vieneto kaina*]]","v":{"v":147391,"d":"147,391.00 Lt"}}]
[null,1,{"$f":"IFERROR(IF(lntPard[[#This Row],[Produkto ID]]<>\"\",VLOOKUP(lntPard[Produkto ID],lntProdukt[[Produkto ID]:[Pavadinimas]],2,FALSE),\"\"),\"Unknown Product ID\")","v":"Marškiniai"},"2012-05-14",34,{"v":31,"d":"31.00 Lt"},850,{"v":1548,"d":"1,548"},{"$f":"lntPard[[#This Row],[Parduota vienetų (mažmenine kaina)]]+lntPard[[#This Row],[Parduota vienetų (didmenine kaina)]]","v":{"v":2398,"d":"2,398"}},{"$f":"lntPard[[#This Row],[Parduota vienetų (mažmenine kaina)]]*lntPard[[#This Row],[Mažmeninė vieneto kaina]]+lntPard[[#This Row],[Parduota vienetų (didmenine kaina)]]*lntPard[[#This Row],[Didmeninė vieneto kaina*]]","v":{"v":76888,"d":"76,888.00 Lt"}}]
[null,2,{"$f":"IFERROR(IF(lntPard[[#This Row],[Produkto ID]]<>\"\",VLOOKUP(lntPard[Produkto ID],lntProdukt[[Produkto ID]:[Pavadinimas]],2,FALSE),\"\"),\"Unknown Product ID\")","v":"Sandalai"},"2012-05-14",64,{"v":40,"d":"40.00 Lt"},876,{"v":1663,"d":"1,663"},{"$f":"lntPard[[#This Row],[Parduota vienetų (mažmenine kaina)]]+lntPard[[#This Row],[Parduota vienetų (didmenine kaina)]]","v":{"v":2539,"d":"2,539"}},{"$f":"lntPard[[#This Row],[Parduota vienetų (mažmenine kaina)]]*lntPard[[#This Row],[Mažmeninė vieneto kaina]]+lntPard[[#This Row],[Parduota vienetų (didmenine kaina)]]*lntPard[[#This Row],[Didmeninė vieneto kaina*]]","v":{"v":122584,"d":"122,584.00 Lt"}}]
[null,3,{"$f":"IFERROR(IF(lntPard[[#This Row],[Produkto ID]]<>\"\",VLOOKUP(lntPard[Produkto ID],lntProdukt[[Produkto ID]:[Pavadinimas]],2,FALSE),\"\"),\"Unknown Product ID\")","v":"Skėčiai"},"2012-05-14",33,{"v":30,"d":"30.00 Lt"},881,{"v":1149,"d":"1,149"},{"$f":"lntPard[[#This Row],[Parduota vienetų (mažmenine kaina)]]+lntPard[[#This Row],[Parduota vienetų (didmenine kaina)]]","v":{"v":2030,"d":"2,030"}},{"$f":"lntPard[[#This Row],[Parduota vienetų (mažmenine kaina)]]*lntPard[[#This Row],[Mažmeninė vieneto kaina]]+lntPard[[#This Row],[Parduota vienetų (didmenine kaina)]]*lntPard[[#This Row],[Didmeninė vieneto kaina*]]","v":{"v":63543,"d":"63,543.00 Lt"}}]
[null,4,{"$f":"IFERROR(IF(lntPard[[#This Row],[Produkto ID]]<>\"\",VLOOKUP(lntPard[Produkto ID],lntProdukt[[Produkto ID]:[Pavadinimas]],2,FALSE),\"\"),\"Unknown Product ID\")","v":"Vandens buteliai"},"2012-05-14",29,{"v":27,"d":"27.00 Lt"},802,{"v":1548,"d":"1,548"},{"$f":"lntPard[[#This Row],[Parduota vienetų (mažmenine kaina)]]+lntPard[[#This Row],[Parduota vienetų (didmenine kaina)]]","v":{"v":2350,"d":"2,350"}},{"$f":"lntPard[[#This Row],[Parduota vienetų (mažmenine kaina)]]*lntPard[[#This Row],[Mažmeninė vieneto kaina]]+lntPard[[#This Row],[Parduota vienetų (didmenine kaina)]]*lntPard[[#This Row],[Didmeninė vieneto kaina*]]","v":{"v":65054,"d":"65,054.00 Lt"}}]
[null,5,{"$f":"IFERROR(IF(lntPard[[#This Row],[Produkto ID]]<>\"\",VLOOKUP(lntPard[Produkto ID],lntProdukt[[Produkto ID]:[Pavadinimas]],2,FALSE),\"\"),\"Unknown Product ID\")","v":"Šortai"},"2013-12-11",24,{"v":15,"d":"15.00 Lt"},824,{"v":1994,"d":"1,994"},{"$f":"lntPard[[#This Row],[Parduota vienetų (mažmenine kaina)]]+lntPard[[#This Row],[Parduota vienetų (didmenine kaina)]]","v":{"v":2818,"d":"2,818"}},{"$f":"lntPard[[#This Row],[Parduota vienetų (mažmenine kaina)]]*lntPard[[#This Row],[Mažmeninė vieneto kaina]]+lntPard[[#This Row],[Parduota vienetų (didmenine kaina)]]*lntPard[[#This Row],[Didmeninė vieneto kaina*]]","v":{"v":49686,"d":"49,686.00 Lt"}}]

{"sheet":"Kainoraštis","index":2,"n_rows":18,"n_cols":6,"rows_kept":18,"merged":[[15,1,15,5]]}
[null,"Produktų kainoraštis"]
[]
[null,"Adventure Works"]
[null,"Klevų g. 23456"]
[null,"Joniškis"]
[null,"Tel. (425) 555 0150"]
[null,"Faks. (425) 555 0152"]
[null,"www.adventure-works.com",{"$nulls":3},"Paskutinį kartą atnaujinta: 2013.08.15"]
[]
[null,"Produkto ID","Pavadinimas","Aprašas","Mažmeninė vieneto kaina","Didmeninė vieneto kaina*"]
[null,1,"Marškiniai","Neperkaisite visą vasarą nešiodami mūsų marškinius iš 100 % medvilnės.",{"v":22,"d":"22.00 Lt"},{"v":15,"d":"15.00 Lt"}]
[null,2,"Sandalai","Aukitės mūsų patvariuosius guminius sandalus ir lengvai keliaukite per karščiausią smėlį.",{"v":10,"d":"10.00 Lt"},{"v":6,"d":"6.00 Lt"}]
[null,3,"Skėčiai","Pasislėpkite nuo saulės po mūsų dideliu paplūdimio skėčiu, kuris sulaiko 96 % pavojingų ultravioletinių spindulių.",{"v":30,"d":"30.00 Lt"},{"v":20,"d":"20.00 Lt"}]
[null,4,"Vandens buteliai","Atsigaivinkite vėsiu vandeniu iš mūsų izoliuoto vandens butelio.",{"v":7,"d":"7.00 Lt"},{"v":5,"d":"5.00 Lt"}]
[null,5,"Šortai","Išsimaudę galite šokti tiesiai į savo automobilį, nes mūsų nailoniniai šortai džiūsta itin greitai.",{"v":15,"d":"15.00 Lt"},{"v":8,"d":"8.00 Lt"}]
[]
[{"$nulls":5},"Skambinkite mums dėl neįtrauktų prekių."]
[{"$nulls":5},"*Didmeninė kaina taikoma perkant 12 arba daugiau vienetų."]

{"sheet":"Kainos taško „Pivot“","index":3,"n_rows":10,"n_cols":4,"rows_kept":10,"hidden":true,"merged":[[1,1,1,3]]}
[null,"Ribinių kainų „PivotTable“"]
[null,"Šis lapas turi likti paslėptas. Bet kokie „PivotTable“ keitimai gali lemti neteisingus duomenis produktų pardavimo ataskaitoje. "]
[null,"Pasirinktas produktas:",{"$f":"IF(LEN(B5),B5,\"Nėra\")","v":"Sandalai"}]
[null,"Produkto pavadinimas","Mažmeninė vieneto kaina","Suma iš Iš viso parduota (#)"]
[null,"Sandalai",{"v":38,"d":"38.00 Lt"},2464]
[null,null,{"v":50,"d":"50.00 Lt"},1777]
[null,null,{"v":64,"d":"64.00 Lt"},2539]
[null,null,{"v":70,"d":"70.00 Lt"},1787]
[null,null,{"v":83,"d":"83.00 Lt"},1758]
[null,null,{"v":91,"d":"91.00 Lt"},2715]

{"sheet":"Pardavimo tendencijų „Pivot“","index":4,"n_rows":9,"n_cols":3,"rows_kept":9,"hidden":true,"merged":[[1,1,1,3]]}
[null,"Pardavimo tendencijų „PivotTable“"]
[null,"Šis lapas turi likti paslėptas. Bet kokie „PivotTable“ keitimai gali lemti neteisingus duomenis produktų pardavimo ataskaitoje. "]
[null,"Suma iš Iš viso parduota (#)","Produkto pavadinimas"]
[null,"Kainos data","Sandalai"]
[null,"Sau",1787]
[null,"Vas",4222]
[null,"Kov",1777]
[null,"Bal",2715]
[null,"Geg",2539]